lending/lending_fUSD_20241005
["ID","MTS","AMOUNT","RATE_DAILY","PERIOD"]
[339883098,1728124039688,-500.0,0.00010999,2]
[339883099,1728124039709,-500.0,0.00010999,2]
[339883100,1728124039731,-500.0,0.00010999,2]
[339883101,1728124039754,-500.0,0.00010999,2]
[339883102,1728124039780,-601.551281,0.00010999,2]
[339883103,1728124039817,-206927.61284141,0.00011,2]
[339883121,1728124048132,-25761.7548665,0.00011,2]
[339883138,1728124231496,-361.519022,0.000109,2]
[339883143,1728124231605,-113.880278,0.000109,2]
[339883144,1728124231620,-402.41297702,0.000109,2]
[339883145,1728124231635,-300.0,0.00010999,2]
[339883146,1728124231649,-150.0,0.00010999,2]
[339883147,1728124231664,-5281.25742204,0.00011,2]
[339883148,1728124231780,-2723.3798655,0.00011,2]
[339883149,1728124231798,-317907.08797399,0.00011,2]
[339883155,1728124237727,-18375.67157071,0.00011,2]
[339883156,1728124237738,-10000.0,0.00011,2]
[339883157,1728124237750,-403664.72385345,0.00011,2]
[339883158,1728124237761,-250.0,0.00011,2]
[339883159,1728124237773,-39112.34148206,0.00011,2]
[339883178,1728124238113,-476125.56918225,0.00011,2]
[339883180,1728124238125,-4064638.57895655,0.00011,2]
[339883182,1728124238136,-966598.58861897,0.00011,2]
[339883184,1728124238147,-1733.45721338,0.00011,2]
[339883187,1728124238175,-72851.66355887,0.00011,2]
[339883189,1728124238190,-140533.99345,0.00011,2]
[339883242,1728124239518,-1594.44684523,0.00011,2]
[339883243,1728124239530,-485.27499999,0.00011,2]
[339883244,1728124239554,-387.98040367,0.00011,2]
[339883245,1728124239567,-699.78547114,0.00011,2]
[339883246,1728124239585,-7971.90000001,0.00011,2]
[339883247,1728124239597,-1003.50055156,0.00011,2]
[339883248,1728124239609,-376.955934,0.00011,2]
[339883249,1728124239621,-1124.02077438,0.00011,2]
[339883250,1728124239632,-1819.20996264,0.00011,2]
[339883251,1728124239667,-3311.6960867,0.00011,2]
[339883252,1728124239678,-288.74194674,0.00011,2]
[339883253,1728124239688,-644.08472678,0.00011,2]
[339883254,1728124239700,-1424.0,0.00011,2]
[339883255,1728124239711,-276.91061512,0.00011,2]
[339883256,1728124239742,-6139.93073305,0.00011,2]
[339883257,1728124239753,-1180.22303273,0.00011,2]
[339883258,1728124239764,-1667.69166463,0.00011,2]
[339883259,1728124239775,-1520.54503176,0.00011,2]
[339883260,1728124239788,-6350.7067306,0.00011,2]
[339883261,1728124239800,-500.0,0.00011,2]
[339883262,1728124239822,-0.37718546,0.00011,2]
[339883263,1728124239842,-6102.1638032,0.00011,2]
[339883264,1728124239854,-4564.99427688,0.00011,2]
[339883265,1728124239865,-419.77238971,0.00011,2]
[339883266,1728124239878,-1656.58520388,0.00011,2]
[339883267,1728124239889,-9681.60895399,0.00011,2]
[339883268,1728124239902,-2042.81024937,0.00011,2]
[339883270,1728124239914,-38845.77453441,0.00011,2]
[339883271,1728124239926,-1216.15843688,0.00011,2]
[339883272,1728124239936,-659.91,0.00011,2]
[339883273,1728124239952,-607.64675005,0.00011,2]
[339883274,1728124239963,-4424.51532221,0.00011,2]
[339883275,1728124239976,-1684.39983408,0.00011,2]
[339883284,1728124242606,-940.096497,0.00011,2]
[339883286,1728124242618,-618042.98338176,0.00011,2]
[339883288,1728124242629,-13172.60853896,0.00011,2]
[339883289,1728124242640,-1599.08934919,0.00011,2]
[339883290,1728124242652,-873.04153788,0.00011,2]
[339883291,1728124242662,-985.07438389,0.00011,2]
[339883292,1728124242674,-455.37695136,0.00011,2]
[339883293,1728124242706,-3604.77819299,0.00011,2]
[339883294,1728124242717,-463.29586362,0.00011,2]
[339883295,1728124242728,-831.48450349,0.00011,2]
[339883296,1728124242749,-1570.55517767,0.00011,2]
[339883297,1728124242761,-1389.0,0.00011,2]
[339883298,1728124242772,-3664.0000002,0.00011,2]
[339883299,1728124242783,-6246.50973598,0.00011,2]
[339883300,1728124242794,-748.63230573,0.00011,2]
[339883301,1728124242806,-327.43242618,0.00011,2]
[339883302,1728124242817,-286.93626806,0.00011,2]
[339883303,1728124242835,-8170.57666909,0.00011,2]
[339883304,1728124242846,-313.90484896,0.00011,2]
[339883305,1728124242970,-713017.89493867,0.00011,2]
[339883306,1728124242982,-3169.21683686,0.00011,2]
[339883307,1728124243000,-701.56000045,0.00011,2]
[339883308,1728124243011,-510.81800001,0.00011,2]
[339883309,1728124243021,-396.372256,0.00011,2]
[339883310,1728124243032,-2211.07566504,0.00011,2]
[339883311,1728124243043,-1252.3653747,0.00011,2]
[339883312,1728124243054,-1732.88242047,0.00011,2]
[339883317,1728124245624,-313.06330969,0.000109,2]
[339883318,1728124245635,-276.345,0.000109,2]
[339883319,1728124245647,-20944.7951398,0.000109,2]
[339883320,1728124245658,-1171.88164874,0.000109,2]
[339883321,1728124245670,-580.59172386,0.000109,2]
[339883322,1728124245681,-1001.35375168,0.000109,2]
[339883323,1728124245749,-1367.99179144,0.000109,2]
[339883324,1728124245761,-3151.08700003,0.000109,2]
[339883325,1728124245774,-573.27155235,0.000109,2]
[339883326,1728124245800,-664.41391343,0.000109,2]
[339883327,1728124245813,-29356.27424019,0.000109,2]
[339883328,1728124245822,-34217.83509914,0.00011,2]
[339883329,1728124245838,-529789.79778684,0.00011,2]
[339883330,1728124245861,-53251.36649503,0.00011,2]
[339883331,1728124245884,-1058.70623904,0.00011,2]
[339883332,1728124245897,-300.0,0.00011,2]
[339883335,1728124520528,200.0,0.000102,3]
[339883336,1728124522639,500.0,0.000103,3]
[339883337,1728124524746,800.0,0.000104,3]
[339883338,1728124526840,1000.0,0.000105,3]
[339883339,1728124528970,1300.0,0.000106,3]
[339883340,1728124531092,200.0,0.000107,3]
[339883341,1728124533231,200.0,0.000108,3]
[339883342,1728124535347,200.0,0.000109,3]
[339883343,1728124594795,451.05,0.00010187,2]
[339883344,1728124599664,-840.0,0.00010325,2]
[339883345,1728124599686,-6221.26162616,0.00010468,2]
[339883346,1728124599869,-2938.73837384,0.00010568,2]
[339883347,1728124656742,885.82,8.277e-05,2]
[339883348,1728124713736,150.0,0.00010224,2]
[339883349,1728124851411,890.01,0.00010216,2]
[339883350,1728124891873,200.0,0.00010138,2]
[339883351,1728124907908,262.05,0.00010171,2]
[339883352,1728124965021,182.97,0.00010197,2]
[339883353,1728124990725,250.0,0.00010156,2]
[339883354,1728124998119,500.0,0.00010115,2]
[339883355,1728125038476,548.27,0.00010156,2]
[339883356,1728125046279,328.0,0.00010182,2]
[339883357,1728125076470,250.0,0.00010138,2]
[339883358,1728125113553,23900.0,0.00010183,2]
[339883359,1728125139528,507.43872926,0.00010152,2]
[339883361,1728125183380,201.70059756,0.00010999,3]
[339883362,1728125352236,878.02,8.362e-05,2]
[339883363,1728125363198,-222.0,0.00010252,2]
[339883364,1728125363220,-420.0,0.00010252,2]
[339883365,1728125363240,-358.0,0.00010625,2]
[339883366,1728125365313,-520.02,0.00010625,2]
[339883367,1728125365335,-479.98,0.00010873,2]
[339883368,1728125367049,-20.02,0.00010873,2]
[339883369,1728125367070,-150.0,0.00010889,2]
[339883370,1728125367090,-829.98,0.00010889,2]
[339883371,1728125368434,-1000.0,0.00010889,2]
[339883372,1728125370519,-1000.0,0.00010889,2]
[339883373,1728125381070,-150.0,0.00010889,2]
[339883374,1728125393532,1071.99147682,0.00010999,3]
[339883375,1728125393565,1071.99147682,0.00010999,3]
[339883376,1728125393594,1071.99147682,0.00010999,3]
[339883377,1728125393646,1071.99147682,0.00010999,3]
[339883378,1728125393759,1071.99147681,0.00010999,3]
[339883390,1728125431675,-445.0,0.00010369,2]
[339883392,1728125431686,-170.99,0.00010435,2]
[339883394,1728125431695,-918.0,0.00010781,2]
[339883396,1728125431705,-204.86764,0.0001089,2]
[339883398,1728125431714,-15389.87043975,0.0001089,2]
[339883400,1728125431723,-1743.85,0.00010899,2]
[339883402,1728125431732,-222.0,0.00010899,2]
[339883404,1728125431741,-341.32481598,0.000109,2]
[339883406,1728125431751,-18731.2092,0.000109,2]
[339883407,1728125431760,-187.3438354,0.000109,2]
[339883408,1728125431770,-2954.3327,0.000109,2]
[339883409,1728125431779,-33387.99376592,0.000109,2]
[339883410,1728125431800,-2705.49053353,0.000109,2]
[339883411,1728125431811,-2132.33218236,0.000109,2]
[339883412,1728125431823,-3897.67600053,0.000109,2]
[339883413,1728125431922,-3321.65818036,0.000109,2]
[339883414,1728125431933,-800.0,0.000109,2]
[339883420,1728125437703,-2051.00370932,0.000109,2]
[339883423,1728125437822,-3300.53472798,0.000109,2]
[339883424,1728125437832,-182.1578,0.000109,2]
[339883425,1728125437841,-9868.7722,0.000109,2]
[339883426,1728125437850,-3336.2739,0.000109,2]
[339883427,1728125437860,-7564.80608152,0.000109,2]
[339883428,1728125437871,-1385.79061698,0.000109,2]
[339883429,1728125437881,-268.275318,0.000109,2]
[339883430,1728125437892,-255.0,0.00010905,2]
[339883431,1728125437903,-187.72,0.00010905,2]
[339883432,1728125437912,-1165.19,0.00010912,2]
[339883433,1728125437921,-3293.26,0.00010912,2]
[339883434,1728125437931,-499.99,0.00010912,2]
[339883435,1728125437940,-161.96,0.00010959,2]
[339883436,1728125437949,-406.44,0.00010959,2]
[339883437,1728125437958,-500.0,0.00010973,2]
[339883438,1728125437967,-150.0074561,0.00010973,2]
[339883439,1728125437976,-150.8518554,0.00010973,2]
[339883440,1728125437986,-276.16624283,0.00010999,2]
[339883441,1728125437996,-192.1077853,0.00010999,2]
[339883442,1728125438005,-610.24042394,0.00010999,2]
[339883443,1728125438015,-581.22569491,0.00010999,2]
[339883444,1728125438024,-689.0,0.00011,2]
[339883445,1728125438034,-1686821.92098418,0.00011,2]
[339883446,1728125438046,-663.2,0.00011,2]
[339883447,1728125438064,-2510.72,0.00011,2]
[339883448,1728125438083,-582.24356216,0.00011,2]
[339883449,1728125438137,-127089.684172,0.00011,2]
[339883454,1728125439809,-150.8939074,0.00010973,2]
[339883455,1728125439825,-1342.5037606,0.00011,2]
[339883456,1728125439984,-44.71177025,0.00011,2]
[339883457,1728125440020,-5228.1244667,0.00011,2]
[339883458,1728125440038,-1170.15,0.00011,2]
[339883462,1728125441443,-1584.459001,0.00011,2]
[339883463,1728125441456,-9030.68462003,0.00011,2]
[339883464,1728125441486,-2546.88,0.00011,2]
[339883474,1728125442755,-589.97098,0.00011,2]
[339883475,1728125442866,-3041.5,0.00011,2]
[339883476,1728125443022,-1388.82081271,0.00011,2]
[339883505,1728125720928,23900.0,0.00010037,2]
[339883506,1728125861715,1000.0,0.00010043,2]
[339883507,1728125867197,862.75,8.219e-05,2]
[339883508,1728125877049,250.0,0.00010041,2]
[339883509,1728125956435,-862.75,0.00010478,2]
[339883510,1728125956457,-137.25,0.00010662,2]
[339883511,1728125959480,-439.38,0.00010662,2]
[339883512,1728125959502,-250.0,0.00010666,2]
[339883513,1728125959523,-230.2176,0.00010773,2]
[339883514,1728125959544,-80.4024,0.000108,2]
[339883515,1728125960687,-1000.0,0.000108,2]
[339883516,1728125962137,-1000.0,0.000108,2]
[339883517,1728125963323,-1000.0,0.000108,2]
[339883518,1728125967543,-700.0,0.000108,2]
[339883519,1728126012368,425.17,0.00010091,2]
[339883520,1728126043333,265.5,0.00010108,2]
[339883521,1728126092031,899.54,0.00010049,2]
[339883522,1728126180957,250.0,9.951e-05,2]
[339883523,1728126199034,500.0,9.871e-05,2]
[339883524,1728126289811,23900.0,9.814e-05,2]
[339883525,1728126321056,150.0,9.888e-05,2]
[339883526,1728126377713,200.0,9.81e-05,2]
[339883527,1728126431178,810.72,8.219e-05,2]
[339883528,1728126498929,-810.72,0.00010466,2]
[339883529,1728126498971,-150.0,0.00010717,2]
[339883530,1728126499016,-39.28,0.00010719,2]
[339883531,1728126500930,-110.72,0.00010719,2]
[339883532,1728126500964,-150.0,0.0001072,2]
[339883533,1728126500997,-150.0,0.00010721,2]
[339883534,1728126501033,-150.0,0.00010722,2]
[339883535,1728126501068,-150.0,0.00010725,2]
[339883536,1728126501103,-150.0,0.00010729,2]
[339883537,1728126501136,-139.28,0.0001073,2]
[339883538,1728126515373,296.13,9.816e-05,2]
[339883539,1728126531170,-10.72,0.0001073,2]
[339883540,1728126531194,-150.0,0.00010731,2]
[339883541,1728126531214,-150.0,0.00010731,2]
[339883542,1728126531236,-150.0,0.00010731,2]
[339883543,1728126531257,-499.99,0.00010731,2]
[339883544,1728126531279,-39.29,0.00010732,2]
[339883545,1728126535130,-600.0,0.00010732,2]
[339883546,1728126548323,157.87,9.818e-05,2]
[339883553,1728126631937,-860.71,0.00010732,2]
[339883554,1728126631949,-150.0,0.00010732,2]
[339883555,1728126631958,-150.0,0.00010734,2]
[339883556,1728126631968,-150.0,0.00010734,2]
[339883557,1728126631979,-150.0,0.00010734,2]
[339883558,1728126631988,-150.0,0.00010735,2]
[339883559,1728126631998,-108.41877853,0.00010736,2]
[339883560,1728126632010,-41.58122147,0.00010736,2]
[339883561,1728126632020,-150.0,0.00010737,2]
[339883562,1728126632030,-76.48888785,0.00010738,2]
[339883563,1728126632043,-73.51111215,0.00010738,2]
[339883564,1728126632053,-150.0,0.00010738,2]
[339883565,1728126632063,-150.0,0.0001074,2]
[339883566,1728126632072,-150.0,0.00010742,2]
[339883567,1728126632082,-854.78466187,0.00010744,2]
[339883568,1728126632094,-427.51880542,0.00010744,2]
[339883569,1728126632106,-217.69653271,0.00010744,2]
[339883570,1728126632116,-300.0,0.00010744,2]
[339883571,1728126632125,-150.0,0.00010745,2]
[339883572,1728126632136,-2488.27059057,0.00010745,2]
[339883573,1728126632148,-1602.76914189,0.00010745,2]
[339883574,1728126632171,-279.79026754,0.00010745,2]
[339883575,1728126632181,-150.0,0.00010746,2]
[339883576,1728126632191,-150.0,0.00010747,2]
[339883577,1728126632200,-150.0,0.00010748,2]
[339883578,1728126632210,-150.0,0.00010748,2]
[339883579,1728126632220,-150.0,0.00010749,2]
[339883580,1728126632230,-150.0,0.00010752,2]
[339883581,1728126632240,-150.0,0.00010754,2]
[339883582,1728126632250,-52.99780638,0.00010756,2]
[339883583,1728126632262,-97.00219362,0.00010756,2]
[339883584,1728126632271,-150.0,0.00010756,2]
[339883585,1728126632281,-150.0,0.00010757,2]
[339883586,1728126632291,-150.0,0.00010759,2]
[339883587,1728126632301,-161.13780638,0.00010759,2]
[339883588,1728126632313,-1338.86219362,0.00010759,2]
[339883589,1728126632322,-751.55,0.00010759,2]
[339883591,1728126632332,-150.0,0.00010762,2]
[339883593,1728126632343,-150.0,0.00010762,2]
[339883595,1728126632353,-150.0,0.00010764,2]
[339883598,1728126632363,-150.0,0.00010767,2]
[339883609,1728126632595,-1500.0,0.00010769,2]
[339883610,1728126632605,-150.0,0.00010771,2]
[339883611,1728126632615,-150.0,0.00010771,2]
[339883612,1728126632628,-150.0,0.00010773,2]
[339883613,1728126632638,-1500.0,0.00010776,2]
[339883614,1728126632647,-150.0,0.00010776,2]
[339883615,1728126632659,-150.0,0.00010776,2]
[339883616,1728126632669,-150.0,0.00010777,2]
[339883617,1728126632678,-150.0,0.00010777,2]
[339883618,1728126632688,-150.0,0.00010777,2]
[339883619,1728126632700,-150.0,0.00010777,2]
[339883620,1728126632711,-150.0,0.00010779,2]
[339883621,1728126632720,-150.0,0.00010781,2]
[339883622,1728126632731,-150.0,0.00010782,2]
[339883623,1728126632740,-150.0,0.00010783,2]
[339883624,1728126632750,-150.0,0.00010784,2]
[339883625,1728126632759,-1500.0,0.00010787,2]
[339883626,1728126632769,-150.0,0.00010788,2]
[339883627,1728126632779,-150.0,0.00010789,2]
[339883628,1728126632789,-150.0,0.00010789,2]
[339883629,1728126632798,-1921.4169,0.0001079,2]
[339883630,1728126632808,-1500.0,0.00010791,2]
[339883631,1728126632817,-150.0,0.00010791,2]
[339883632,1728126632827,-150.0,0.00010792,2]
[339883633,1728126632836,-1500.0,0.00010794,2]
[339883634,1728126632845,-381.981884,0.00010797,2]
[339883635,1728126632855,-150.0,0.00010798,2]
[339883636,1728126632864,-150.0,0.00010799,2]
[339883637,1728126632874,-150.0,0.000108,2]
[339883638,1728126632884,-150.0,0.000108,2]
[339883639,1728126632893,-150.0,0.000108,2]
[339883640,1728126632903,-1500.0,0.000108,2]
[339883641,1728126632912,-1500.0,0.000108,2]
[339883642,1728126632921,-767.7668,0.000108,2]
[339883643,1728126632931,-500.0,0.000108,2]
[339883644,1728126632940,-1000.0,0.000108,2]
[339883645,1728126632950,-2500.0,0.000108,2]
[339883646,1728126632959,-150.0,0.00010801,2]
[339883647,1728126632969,-150.0,0.00010802,2]
[339883648,1728126632978,-150.0,0.00010813,2]
[339883649,1728126632988,-150.0,0.00010814,2]
[339883650,1728126632998,-150.0,0.00010815,2]
[339883651,1728126633007,-150.0,0.00010815,2]
[339883652,1728126633017,-150.0,0.00010816,2]
[339883653,1728126633027,-150.0,0.00010818,2]
[339883654,1728126633036,-150.0,0.00010819,2]
[339883655,1728126633045,-150.0,0.00010822,2]
[339883656,1728126633054,-1500.0,0.00010823,2]
[339883657,1728126633064,-150.0,0.00010824,2]
[339883658,1728126633073,-150.0,0.00010824,2]
[339883659,1728126633083,-150.0,0.00010825,2]
[339883660,1728126633093,-1500.0,0.00010827,2]
[339883661,1728126633104,-150.0,0.00010827,2]
[339883662,1728126633114,-150.0,0.00010828,2]
[339883663,1728126633125,-150.0,0.00010828,2]
[339883664,1728126633135,-150.0,0.00010829,2]
[339883665,1728126633145,-150.0,0.00010832,2]
[339883666,1728126633154,-150.0,0.00010832,2]
[339883667,1728126633164,-150.0,0.00010833,2]
[339883668,1728126633173,-150.0,0.00010836,2]
[339883669,1728126633183,-150.0,0.00010836,2]
[339883670,1728126633192,-150.0,0.00010837,2]
[339883671,1728126633201,-150.0,0.00010837,2]
[339883672,1728126633211,-150.0,0.0001084,2]
[339883673,1728126633221,-1500.0,0.00010842,2]
[339883674,1728126633231,-150.0,0.00010843,2]
[339883675,1728126633241,-150.0,0.00010845,2]
[339883676,1728126633250,-150.0,0.00010845,2]
[339883677,1728126633260,-702.46142706,0.00010846,2]
[339883678,1728126633273,-797.53857294,0.00010846,2]
[339883679,1728126633287,-150.0,0.00010846,2]
[339883680,1728126633297,-150.0,0.00010847,2]
[339883681,1728126633307,-8.48142706,0.00010847,2]
[339883682,1728126633319,-141.51857294,0.00010847,2]
[339883683,1728126633329,-150.0,0.00010848,2]
[339883684,1728126633339,-147.83142706,0.00010858,2]
[339883685,1728126633351,-2.16857294,0.00010858,2]
[339883686,1728126633361,-150.0,0.00010858,2]
[339883687,1728126633371,-150.0,0.00010861,2]
[339883688,1728126633381,-150.0,0.00010862,2]
[339883689,1728126633391,-150.0,0.00010863,2]
[339883690,1728126633400,-150.0,0.00010865,2]
[339883691,1728126633410,-240.15735465,0.00010873,2]
[339883692,1728126633427,-259.84264535,0.00010873,2]
[339883693,1728126633436,-1500.0,0.00010875,2]
[339883694,1728126633445,-150.0,0.00010877,2]
[339883695,1728126633454,-150.0,0.00010878,2]
[339883696,1728126633466,-150.0,0.00010879,2]
[339883697,1728126633475,-150.0,0.00010879,2]
[339883698,1728126633485,-150.0,0.00010881,2]
[339883699,1728126633494,-1500.0,0.00010887,2]
[339883700,1728126633504,-150.0,0.00010888,2]
[339883701,1728126633514,-150.0,0.00010892,2]
[339883702,1728126633524,-150.0,0.00010895,2]
[339883703,1728126633534,-150.0,0.00010895,2]
[339883704,1728126633544,-229.04638306,0.00010895,2]
[339883705,1728126633554,-150.0,0.00010897,2]
[339883706,1728126633565,-150.0,0.00010898,2]
[339883707,1728126633575,-150.0,0.00010898,2]
[339883708,1728126633584,-355.75961857,0.00010899,2]
[339883709,1728126633597,-1052.354075,0.00010899,2]
[339883710,1728126633606,-1408.11369355,0.00010899,2]
[339883711,1728126633618,-1408.11369355,0.00010899,2]
[339883712,1728126633628,-1408.11369355,0.00010899,2]
[339883713,1728126633638,-821.10484435,0.00010899,2]
[339883714,1728126633651,-587.0088492,0.00010899,2]
[339883715,1728126633660,-1408.11369355,0.00010899,2]
[339883716,1728126633670,-1408.11369355,0.00010899,2]
[339883717,1728126633680,-1062.55973656,0.00010899,2]
[339883718,1728126633691,-345.55395699,0.00010899,2]
[339883719,1728126633702,-1408.11369355,0.00010899,2]
[339883720,1728126633711,-171.68524462,0.000109,2]
[339883721,1728126633721,-1000.0,0.000109,2]
[339883722,1728126633730,-187.3438354,0.000109,2]
[339883723,1728126633740,-78762.32491944,0.000109,2]
[339883724,1728126633764,-622.0,0.000109,2]
[339883725,1728126633775,-1075.9549519,0.000109,2]
[339883726,1728126633787,-3804.41474252,0.000109,2]
[339883727,1728126633802,-15735.30538614,0.000109,2]
[339883728,1728126633812,-2345.33015709,0.000109,2]
[339883729,1728126633823,-1879.8522855,0.000109,2]
[339883730,1728126633835,-939.82724979,0.000109,2]
[339883731,1728126633852,-484.83845067,0.000109,2]
[339883733,1728126637970,-500.0,0.000109,2]
[339883734,1728126638126,-33815.14685695,0.000109,2]
[339883735,1728126638136,-7575.9782,0.000109,2]
[339883736,1728126638145,-363.3599,0.000109,2]
[339883737,1728126638155,-262.0196,0.000109,2]
[339883738,1728126638164,-940.4496,0.000109,2]
[339883739,1728126638173,-1052.48288345,0.000109,2]
[339883740,1728126638182,-245000.0,0.000109,2]
[339883741,1728126638192,-150.0,0.000109,2]
[339883742,1728126638201,-4736.81002441,0.000109,2]
[339883743,1728126638211,-385.97239614,0.000109,2]
[339883744,1728126638220,-1408.11369355,0.000109,2]
[339883745,1728126638229,-321.4929109,0.000109,2]
[339883746,1728126638239,-150.0,0.00010902,2]
[339883747,1728126638248,-150.0,0.00010903,2]
[339883748,1728126638257,-1500.0,0.00010904,2]
[339883749,1728126638266,-150.0,0.00010905,2]
[339883750,1728126638275,-150.0,0.00010915,2]
[339883751,1728126638285,-150.0,0.00010916,2]
[339883752,1728126638294,-1500.0,0.00010916,2]
[339883753,1728126638303,-150.0,0.0001092,2]
[339883754,1728126638312,-150.0,0.00010921,2]
[339883755,1728126638322,-150.0,0.00010922,2]
[339883756,1728126638331,-150.0,0.00010927,2]
[339883757,1728126638340,-150.0,0.00010929,2]
[339883769,1728126638523,-150.0,0.00010931,2]
[339883771,1728126638533,-150.0,0.00010932,2]
[339883773,1728126638543,-150.0,0.00010933,2]
[339883775,1728126638552,-1500.0,0.00010934,2]
[339883777,1728126638562,-150.0,0.00010934,2]
[339883779,1728126638571,-150.0,0.00010936,2]
[339883781,1728126638580,-1500.0,0.00010939,2]
[339883783,1728126638589,-150.0,0.00010943,2]
[339883784,1728126638600,-150.0,0.00010945,2]
[339883786,1728126638609,-193.01587068,0.00010946,2]
[339883788,1728126638618,-150.0,0.00010946,2]
[339883790,1728126638628,-1500.0,0.00010947,2]
[339883792,1728126638637,-258.62443721,0.00010947,2]
[339883793,1728126638650,-150.0,0.00010947,2]
[339883795,1728126638659,-1500.0,0.00010951,2]
[339883796,1728126638668,-150.0,0.00010952,2]
[339883797,1728126638677,-150.0,0.00010953,2]
[339883798,1728126638688,-150.0,0.00010954,2]
[339883799,1728126638697,-150.0,0.00010955,2]
[339883800,1728126638707,-150.0,0.00010956,2]
[339883801,1728126638719,-150.0,0.00010957,2]
[339883802,1728126638728,-150.0,0.00010958,2]
[339883803,1728126638738,-200.0,0.00010959,2]
[339883804,1728126638747,-200.0,0.00010959,2]
[339883805,1728126638756,-200.0,0.00010959,2]
[339883806,1728126638766,-167.3,0.00010959,2]
[339883807,1728126638775,-372.93,0.00010959,2]
[339883808,1728126638785,-155.43,0.00010959,2]
[339883809,1728126638795,-458.12,0.00010959,2]
[339883810,1728126638806,-381.76,0.00010959,2]
[339883811,1728126638816,-318.14,0.00010959,2]
[339883812,1728126638825,-265.11,0.00010959,2]
[339883813,1728126638834,-220.93,0.00010959,2]
[339883814,1728126638844,-184.11,0.00010959,2]
[339883815,1728126638853,-153.42,0.00010959,2]
[339883816,1728126638862,-767.13,0.00010959,2]
[339883817,1728126638872,-150.0,0.00010959,2]
[339883818,1728126638883,-150.0,0.00010964,2]
[339883819,1728126638893,-150.0,0.00010967,2]
[339883820,1728126638903,-150.0,0.00010967,2]
[339883821,1728126638916,-150.0,0.00010967,2]
[339883822,1728126638925,-150.0,0.00010969,2]
[339883823,1728126638934,-150.0,0.00010969,2]
[339883824,1728126638944,-150.0,0.0001097,2]
[339883825,1728126638954,-150.8518554,0.00010973,2]
[339883826,1728126638964,-150.0,0.00010976,2]
[339883827,1728126638974,-1500.0,0.00010976,2]
[339883828,1728126638985,-1500.0,0.00010977,2]
[339883829,1728126638995,-150.0,0.00010983,2]
[339883830,1728126639004,-150.0,0.00010984,2]
[339883831,1728126639014,-150.0,0.00010985,2]
[339883832,1728126639024,-1500.0,0.00010986,2]
[339883833,1728126639033,-150.0,0.00010986,2]
[339883834,1728126639043,-170.13,0.00010992,2]
[339883835,1728126639053,-730.538,0.00010992,2]
[339883836,1728126639062,-150.0,0.00010996,2]
[339883837,1728126639071,-500.0,0.00010999,2]
[339883838,1728126639081,-211.37529349,0.00010999,2]
[339883839,1728126639091,-619.0,0.00011,2]
[339883840,1728126639102,-789105.08956956,0.00011,2]
[339883841,1728126639111,-151.0,0.00011,2]
[339883842,1728126639120,-500.0,0.00011,2]
[339883843,1728126639129,-500.0,0.00011,2]
[339883844,1728126639140,-500.0,0.00011,2]
[339883845,1728126639149,-500.0,0.00011,2]
[339883846,1728126639161,-500.0,0.00011,2]
[339883847,1728126639170,-500.0,0.00011,2]
[339883848,1728126639179,-500.0,0.00011,2]